fUSD/lending_fUSD_20240905
["ID","MTS","AMOUNT","RATE_DAILY","PERIOD"]
[337282278,1725574241938,-1412.43,0.00014597,2]
[337282279,1725574241947,-500.0,0.00014597,2]
[337282280,1725574241956,-503.61,0.00014597,2]
[337282281,1725574241966,-500.0,0.00014597,2]
[337282282,1725574241976,-784.79,0.00014597,2]
[337282283,1725574241985,-634.0,0.00014598,2]
[337282284,1725574241994,-500.0,0.00014598,2]
[337282285,1725574242003,-500.0,0.00014598,2]
[337282286,1725574242012,-500.0,0.00014598,2]
[337282287,1725574242023,-500.0,0.00014598,2]
[337282288,1725574242032,-500.0,0.00014598,2]
[337282289,1725574242041,-572.36,0.00014598,2]
[337282290,1725574242050,-500.0,0.00014598,2]
[337282291,1725574242059,-500.0,0.00014598,2]
[337282292,1725574242068,-500.0,0.00014598,2]
[337282293,1725574242227,-962.13,0.00014598,2]
[337282294,1725574242238,-962.13,0.00014598,2]
[337282295,1725574242247,-962.13,0.00014598,2]
[337282296,1725574242256,-500.0,0.00014598,2]
[337282297,1725574242266,-500.0,0.00014598,2]
[337282298,1725574242275,-500.0,0.00014598,2]
[337282299,1725574242284,-500.0,0.00014598,2]
[337282300,1725574242293,-500.0,0.00014598,2]
[337282301,1725574242302,-500.0,0.00014598,2]
[337282302,1725574242311,-550.79,0.00014598,2]
[337282303,1725574242320,-550.79,0.00014598,2]
[337282304,1725574242329,-550.79,0.00014598,2]
[337282305,1725574242338,-578.16,0.00014598,2]
[337282306,1725574242347,-2274.36,0.00014598,2]
[337282307,1725574242356,-578.16,0.00014598,2]
[337282308,1725574242365,-578.16,0.00014598,2]
[337282309,1725574242374,-2274.36,0.00014598,2]
[337282310,1725574242383,-2274.36,0.00014598,2]
[337282311,1725574242393,-500.0,0.00014598,2]
[337282312,1725574242402,-500.0,0.00014598,2]
[337282313,1725574242412,-500.0,0.00014598,2]
[337282314,1725574242421,-500.0,0.00014598,2]
[337282315,1725574242430,-500.0,0.00014598,2]
[337282316,1725574242439,-500.0,0.00014598,2]
[337282317,1725574242448,-500.0,0.00014598,2]
[337282318,1725574242458,-500.0,0.00014598,2]
[337282319,1725574242467,-500.0,0.00014598,2]
[337282320,1725574242476,-10918.01,0.00014598,2]
[337282321,1725574242485,-10918.01,0.00014598,2]
[337282322,1725574242495,-10918.01,0.00014598,2]
[337282323,1725574242504,-812.9,0.00014598,2]
[337282324,1725574242513,-812.9,0.00014598,2]
[337282325,1725574242526,-812.9,0.00014598,2]
[337282326,1725574242535,-1755.71,0.00014598,2]
[337282327,1725574242545,-812.9,0.00014598,2]
[337282328,1725574242554,-1755.71,0.00014598,2]
[337282329,1725574242563,-1755.71,0.00014598,2]
[337282330,1725574242572,-500.0,0.00014598,2]
[337282331,1725574242581,-500.0,0.00014598,2]
[337282332,1725574242591,-500.0,0.00014598,2]
[337282333,1725574242599,-500.0,0.00014598,2]
[337282334,1725574242608,-500.0,0.00014598,2]
[337282335,1725574242617,-500.0,0.00014598,2]
[337282336,1725574242626,-500.0,0.00014598,2]
[337282337,1725574242635,-500.0,0.00014598,2]
[337282338,1725574242644,-500.0,0.00014598,2]
[337282339,1725574242654,-666.88,0.00014598,2]
[337282340,1725574242663,-666.88,0.00014598,2]
[337282341,1725574242672,-666.88,0.00014598,2]
[337282342,1725574242681,-1290.08,0.00014598,2]
[337282343,1725574242690,-1290.08,0.00014598,2]
[337282344,1725574242699,-1290.08,0.00014598,2]
[337282345,1725574242708,-1290.08,0.00014598,2]
[337282346,1725574242719,-1824.95,0.00014598,2]
[337282347,1725574242728,-1824.95,0.00014598,2]
[337282348,1725574242737,-1824.95,0.00014598,2]
[337282349,1725574242746,-884.76,0.00014598,2]
[337282350,1725574242755,-884.76,0.00014598,2]
[337282351,1725574242765,-884.76,0.00014598,2]
[337282352,1725574242783,-959.37,0.00014598,2]
[337282353,1725574242792,-959.37,0.00014598,2]
[337282354,1725574242801,-959.37,0.00014598,2]
[337282355,1725574242810,-500.0,0.00014598,2]
[337282356,1725574242819,-500.0,0.00014598,2]
[337282357,1725574242828,-500.0,0.00014598,2]
[337282358,1725574242837,-500.0,0.00014598,2]
[337282359,1725574242846,-500.0,0.00014598,2]
[337282360,1725574242855,-500.0,0.00014598,2]
[337282361,1725574242864,-500.0,0.00014598,2]
[337282362,1725574242873,-500.0,0.00014598,2]
[337282363,1725574242883,-500.0,0.00014598,2]
[337282364,1725574242896,-500.0,0.00014598,2]
[337282365,1725574242906,-500.0,0.00014598,2]
[337282366,1725574242915,-500.0,0.00014598,2]
[337282367,1725574242923,-500.0,0.00014598,2]
[337282368,1725574242933,-2013.33,0.00014598,2]
[337282369,1725574242942,-2013.33,0.00014598,2]
[337282370,1725574242952,-2013.33,0.00014598,2]
[337282371,1725574242962,-2013.33,0.00014598,2]
[337282372,1725574242971,-500.0,0.00014598,2]
[337282373,1725574242980,-500.0,0.00014598,2]
[337282374,1725574242990,-500.0,0.00014598,2]
[337282375,1725574242999,-500.0,0.00014598,2]
[337282376,1725574243008,-500.0,0.00014598,2]
[337282377,1725574243019,-500.0,0.00014598,2]
[337282379,1725574243028,-500.0,0.00014598,2]
[337282382,1725574243037,-500.0,0.00014598,2]
[337282383,1725574243046,-500.0,0.00014598,2]
[337282385,1725574243055,-944.42,0.00014598,2]
[337282387,1725574243064,-944.42,0.00014598,2]
[337282388,1725574243074,-722.37,0.00014598,2]
[337282390,1725574243083,-944.42,0.00014598,2]
[337282392,1725574243091,-722.37,0.00014598,2]
[337282393,1725574243100,-722.37,0.00014598,2]
[337282394,1725574243110,-722.37,0.00014598,2]
[337282395,1725574243119,-500.0,0.00014598,2]
[337282396,1725574243128,-500.0,0.00014598,2]
[337282397,1725574243136,-500.0,0.00014598,2]
[337282398,1725574243145,-2323.78,0.00014598,2]
[337282399,1725574243154,-2323.78,0.00014598,2]
[337282400,1725574243164,-2323.78,0.00014598,2]
[337282401,1725574243173,-702.88,0.00014598,2]
[337282402,1725574243182,-702.88,0.00014598,2]
[337282403,1725574243191,-702.88,0.00014598,2]
[337282404,1725574243201,-702.88,0.00014598,2]
[337282405,1725574243210,-834.01,0.00014598,2]
[337282406,1725574243220,-834.01,0.00014598,2]
[337282407,1725574243229,-834.01,0.00014598,2]
[337282408,1725574243238,-1180.99,0.00014598,2]
[337282409,1725574243247,-1161.70796517,0.00014598,2]
[337282410,1725574243419,-19.28203483,0.00014598,2]
[337282411,1725574243428,-1180.99,0.00014598,2]
[337282412,1725574243437,-718.91,0.00014598,2]
[337282413,1725574243446,-33.56157995,0.00014598,2]
[337282414,1725574243461,-685.34842005,0.00014598,2]
[337282416,1725574243470,-499.99446769,0.00014598,2]
[337282418,1725574243481,-218.91553231,0.00014598,2]
[337282420,1725574243490,-718.91,0.00014598,2]
[337282421,1725574243499,-820.37652705,0.00014598,2]
[337282422,1725574243510,-2348.40046312,0.00014598,2]
[337282423,1725574243523,-851.90300983,0.00014598,2]
[337282424,1725574243532,-316.80465291,0.00014598,2]
[337282425,1725574243543,-1686.36313362,0.00014598,2]
[337282426,1725574243636,-524.66514586,0.00014022,2]
[337282427,1725574243647,-1056.7785687,0.00014022,2]
[337282428,1725574243659,-1273.216,0.00014022,2]
[337282429,1725574243670,-507.5136148,0.00014022,2]
[337282430,1725574243681,-992.57555336,0.00014022,2]
[337282431,1725574243692,-268.2,0.00014022,2]
[337282432,1725574243703,-460.56973873,0.00014022,2]
[337282433,1725574243714,-2062.51062496,0.00014022,2]
[337282434,1725574243723,-2017.51221347,0.00014598,2]
[337282435,1725574243732,-368.15688118,0.00014598,2]
[337282436,1725574243743,-1306.3948632,0.00014598,2]
[337282437,1725574243915,-225.03152852,0.00014479,2]
[337282438,1725574243926,-2346.12825562,0.00014598,2]
[337282439,1725574243935,-3713.1,0.00014598,2]
[337282440,1725574243946,-871.42245933,0.00014598,2]
[337282441,1725574243957,-275.452,0.00014598,2]
[337282442,1725574243970,-2566.22554067,0.00014598,2]
[337282443,1725574243980,-3713.1,0.00014598,2]
[337282444,1725574243990,-557.88,0.00014598,2]
[337282445,1725574244000,-557.88,0.00014598,2]
[337282446,1725574244009,-557.88,0.00014598,2]
[337282447,1725574244021,-873.11,0.00014598,2]
[337282448,1725574244030,-873.11,0.00014598,2]
[337282449,1725574244039,-873.11,0.00014598,2]
[337282450,1725574244048,-1276.8,0.00014598,2]
[337282451,1725574244057,-1276.8,0.00014598,2]
[337282452,1725574244066,-1276.8,0.00014598,2]
[337282453,1725574244076,-1276.8,0.00014598,2]
[337282454,1725574244085,-500.0,0.00014598,2]
[337282455,1725574244094,-500.0,0.00014598,2]
[337282456,1725574244103,-332.21,0.00014598,2]
[337282457,1725574244112,-500.0,0.00014598,2]
[337282458,1725574244121,-500.0,0.00014598,2]
[337282459,1725574244131,-500.0,0.00014598,2]
[337282460,1725574244140,-500.0,0.00014598,2]
[337282461,1725574244149,-500.0,0.00014598,2]
[337282462,1725574244158,-500.0,0.00014598,2]
[337282463,1725574244167,-1264.38,0.00014598,2]
[337282464,1725574244176,-1264.38,0.00014598,2]
[337282465,1725574244185,-1264.38,0.00014598,2]
[337282466,1725574244194,-3408.28,0.00014598,2]
[337282467,1725574244203,-3408.28,0.00014598,2]
[337282468,1725574244213,-3408.28,0.00014598,2]
[337282469,1725574244222,-1048.84,0.00014598,2]
[337282470,1725574244231,-1048.84,0.00014598,2]
[337282471,1725574244240,-1048.84,0.00014598,2]
[337282472,1725574244249,-1418.13,0.00014598,2]
[337282473,1725574244258,-1418.13,0.00014598,2]
[337282474,1725574244267,-1418.13,0.00014598,2]
[337282475,1725574244277,-1412.43,0.00014598,2]
[337282476,1725574244286,-1412.43,0.00014598,2]
[337282477,1725574244296,-1412.43,0.00014598,2]
[337282478,1725574244306,-500.0,0.00014598,2]
[337282479,1725574244315,-500.0,0.00014598,2]
[337282480,1725574244324,-500.0,0.00014598,2]
[337282481,1725574244334,-500.0,0.00014598,2]
[337282482,1725574244343,-503.61,0.00014598,2]
[337282483,1725574244353,-503.61,0.00014598,2]
[337282484,1725574244362,-503.61,0.00014598,2]
[337282485,1725574244371,-500.0,0.00014598,2]
[337282486,1725574244380,-500.0,0.00014598,2]
[337282487,1725574244389,-500.0,0.00014598,2]
[337282488,1725574244398,-500.0,0.00014598,2]
[337282489,1725574244407,-784.79,0.00014598,2]
[337282490,1725574244416,-784.79,0.00014598,2]
[337282491,1725574244425,-784.79,0.00014598,2]
[337282492,1725574244434,-500.0,0.00014599,2]
[337282493,1725574244443,-500.0,0.00014599,2]
[337282494,1725574244453,-500.0,0.00014599,2]
[337282495,1725574244462,-500.0,0.00014599,2]
[337282496,1725574244471,-500.0,0.00014599,2]
[337282497,1725574244481,-500.0,0.00014599,2]
[337282498,1725574244490,-161.32,0.00014599,2]
[337282499,1725574244499,-10006.37709208,0.00014599,3]
[337282500,1725574244508,-376.78,0.00014599,2]
[337282501,1725574244517,-962.13,0.00014599,2]
[337282502,1725574244526,-962.13,0.00014599,2]
[337282503,1725574244535,-962.13,0.00014599,2]
[337282504,1725574244544,-962.13,0.00014599,2]
[337282505,1725574244554,-962.13,0.00014599,2]
[337282506,1725574244563,-962.13,0.00014599,2]
[337282507,1725574244572,-962.13,0.00014599,2]
[337282508,1725574244581,-962.13,0.00014599,2]
[337282509,1725574244591,-962.13,0.00014599,2]
[337282510,1725574244599,-962.13,0.00014599,2]
[337282511,1725574244609,-962.13,0.00014599,2]
[337282512,1725574244618,-962.13,0.00014599,2]
[337282513,1725574244629,-962.13,0.00014599,2]
[337282514,1725574244637,-962.13,0.00014599,2]
[337282515,1725574244646,-962.13,0.00014599,2]
[337282516,1725574244656,-962.32,0.00014599,2]
[337282517,1725574244665,-500.0,0.00014599,2]
[337282518,1725574244674,-500.0,0.00014599,2]
[337282519,1725574244683,-362.98,0.00014599,2]
[337282520,1725574244692,-500.0,0.00014599,2]
[337282521,1725574244702,-500.0,0.00014599,2]
[337282522,1725574244711,-500.0,0.00014599,2]
[337282523,1725574244720,-500.0,0.00014599,2]
[337282524,1725574244729,-500.0,0.00014599,2]
[337282525,1725574244738,-500.0,0.00014599,2]
[337282526,1725574244747,-500.0,0.00014599,2]
[337282527,1725574244755,-500.0,0.00014599,2]
[337282528,1725574244766,-500.0,0.00014599,2]
[337282529,1725574244775,-448.54,0.00014599,2]
[337282530,1725574244784,-550.79,0.00014599,2]
[337282531,1725574244793,-550.79,0.00014599,2]
[337282532,1725574244802,-550.79,0.00014599,2]
[337282533,1725574244811,-550.79,0.00014599,2]
[337282534,1725574244820,-550.79,0.00014599,2]
[337282535,1725574244829,-550.79,0.00014599,2]
[337282536,1725574244838,-550.79,0.00014599,2]
[337282537,1725574244847,-550.79,0.00014599,2]
[337282538,1725574244855,-550.79,0.00014599,2]
[337282539,1725574244864,-550.79,0.00014599,2]
[337282540,1725574244873,-550.79,0.00014599,2]
[337282541,1725574244882,-550.79,0.00014599,2]
[337282542,1725574244894,-550.79,0.00014599,2]
[337282543,1725574244904,-550.79,0.00014599,2]
[337282544,1725574244913,-550.79,0.00014599,2]
[337282545,1725574244923,-550.83647271,0.00014599,2]
[337282546,1725574244933,-500.0,0.00014599,2]
[337282547,1725574244943,-500.0,0.00014599,2]
[337282548,1725574244952,-500.0,0.00014599,2]
[337282549,1725574244961,-500.0,0.00014599,2]
[337282550,1725574244972,-500.0,0.00014599,2]
[337282551,1725574244982,-500.0,0.00014599,2]
[337282552,1725574244991,-500.0,0.00014599,2]
[337282553,1725574245000,-500.0,0.00014599,2]
[337282554,1725574245009,-500.0,0.00014599,2]
[337282555,1725574245018,-500.0,0.00014599,2]
[337282556,1725574245027,-276.68445816,0.00014599,2]
[337282557,1725574245037,-500.0,0.00014599,2]
[337282558,1725574245049,-500.0,0.00014599,2]
[337282559,1725574245059,-500.0,0.00014599,2]
[337282560,1725574245069,-500.0,0.00014599,2]
[337282561,1725574245078,-500.0,0.00014599,2]
[337282562,1725574245087,-500.0,0.00014599,2]
[337282563,1725574245096,-641.84409006,0.00014599,2]
[337282564,1725574245106,-10918.01,0.00014599,2]
[337282565,1725574245115,-10918.01,0.00014599,2]
[337282566,1725574245125,-10918.01,0.00014599,2]
[337282567,1725574245134,-7015.35696171,0.00014599,2]
[337282568,1725574245150,-1436.50909284,0.00014599,2]
[337282569,1725574245162,-2466.14394545,0.00014599,2]
[337282570,1725574245171,-3555.75605455,0.00014599,2]
[337282571,1725574246319,-574.0,0.00014599,2]
[337282572,1725574246329,-152.52366915,0.00014599,2]
[337282573,1725574246341,-965.71228603,0.00014599,2]
[337282574,1725574246352,-3567.11591837,0.00014599,2]
[337282575,1725574246385,-2676.9020719,0.00014599,2]
[337282576,1725574246394,-8319.34290795,0.00014599,2]
[337282577,1725574246447,-2598.66709205,0.00014599,2]
[337282578,1725574246456,-227.52691628,0.00014599,2]
[337282579,1725574246467,-1026.0,0.00014599,2]
[337282580,1725574246478,-642.6657503,0.00014599,2]
[337282582,1725574246643,-2265.95848343,0.00014599,2]
[337282584,1725574246661,-253.90374581,0.00014599,2]
[337282585,1725574246672,-1011.36027468,0.00014599,2]
[337282586,1725574246683,-5490.5948295,0.00014599,2]
[337282587,1725574246692,-10918.01,0.00014599,2]
[337282588,1725574246701,-10346.30451624,0.00014599,2]
[337282589,1725574246712,-258.90026698,0.00014599,2]
[337282590,1725574246722,-312.80521678,0.00014599,2]
[337282591,1725574246732,-812.9,0.00014599,2]
[337282592,1725574246740,-3355.76427595,0.00014599,2]
[337282594,1725574246751,-1122.59869064,0.00014599,2]
[337282595,1725574246762,-1556.95999997,0.00014599,2]
[337282596,1725574246773,-4882.68703344,0.00014599,2]
[337282597,1725574246782,-812.9,0.00014599,2]
[337282598,1725574246791,-942.10310896,0.00014599,2]
[337282599,1725574246802,-315.00000008,0.00014599,2]
[337282600,1725574246813,-498.60689096,0.00014599,2]
[337282601,1725574246822,-1755.71,0.00014599,2]
[337282602,1725574246831,-10918.01,0.00014599,2]
[337282603,1725574246840,-1755.71,0.00014599,2]
[337282604,1725574246850,-10918.01,0.00014599,2]
[337282605,1725574246859,-812.9,0.00014599,2]
[337282606,1725574246868,-1755.71,0.00014599,2]
[337282607,1725574246877,-812.9,0.00014599,2]
[337282608,1725574246889,-8583.80010431,0.00014599,2]
[337282609,1725574246900,-2334.20989569,0.00014599,2]
[337282610,1725574246909,-1755.71,0.00014599,2]
[337282611,1725574246918,-812.9,0.00014599,2]
[337282612,1725574246927,-10918.01,0.00014599,2]
[337282613,1725574246936,-1755.71,0.00014599,2]
[337282614,1725574246945,-500.0,0.00014599,2]
[337282615,1725574246954,-812.9,0.00014599,2]
[337282616,1725574246964,-1755.71,0.00014599,2]
[337282617,1725574246973,-500.0,0.00014599,2]
[337282618,1725574246981,-812.9,0.00014599,2]
[337282619,1725574246990,-1755.71,0.00014599,2]
[337282620,1725574246999,-10918.01,0.00014599,2]
[337282621,1725574247008,-500.0,0.00014599,2]
[337282622,1725574247017,-812.9,0.00014599,2]
[337282623,1725574247027,-1755.71,0.00014599,2]
[337282624,1725574247036,-10918.19260847,0.00014599,2]
[337282625,1725574247046,-500.0,0.00014599,2]
[337282626,1725574247055,-812.9,0.00014599,2]
[337282627,1725574247063,-1755.71,0.00014599,2]
[337282628,1725574247072,-500.0,0.00014599,2]
[337282629,1725574247081,-812.9,0.00014599,2]
[337282630,1725574247090,-1755.71,0.00014599,2]
[337282631,1725574247099,-422.58,0.00014599,2]
[337282632,1725574247108,-812.9,0.00014599,2]
[337282633,1725574247117,-1755.71,0.00014599,2]
[337282634,1725574247126,-812.9,0.00014599,2]
[337282635,1725574247135,-1755.71,0.00014599,2]
[337282636,1725574247143,-500.0,0.00014599,2]
[337282637,1725574247153,-812.9,0.00014599,2]
[337282638,1725574247163,-1755.71,0.00014599,2]
[337282639,1725574247171,-500.0,0.00014599,2]
[337282640,1725574247180,-812.9,0.00014599,2]
[337282641,1725574247190,-1755.71,0.00014599,2]
[337282642,1725574247199,-500.0,0.00014599,2]
[337282643,1725574247208,-812.90088419,0.00014599,2]
[337282644,1725574247217,-258.0633676,0.00014599,2]
[337282645,1725574247229,-254.584,0.00014599,2]
[337282646,1725574427576,224.98,0.00011707,2]
[337282648,1725574818982,237.51,0.00010959,2]
[337282649,1725574987807,213.73,0.0001166,2]
[337282658,1725575324999,-1474.73805307,0.000135,5]
[337282663,1725575374678,-1496.33,0.000134,5]
[337282678,1725575431476,-250.0,0.0001355,2]
[337282679,1725575431485,-109.88962849,0.0001355,2]
[337282680,1725575431496,-69.05037151,0.0001355,2]
[337282681,1725575431505,-200.0,0.00013582,2]
[337282682,1725575431513,-1000.0,0.00013615,2]
[337282683,1725575431522,-213.73,0.00013924,2]
[337282684,1725575431531,-374.20904419,0.00014132,2]
[337282685,1725575431551,-225.79095581,0.00014132,2]
[337282686,1725575431560,-202.52837565,0.0001438,2]
[337282687,1725575431569,-202.52837563,0.00014438,2]
[337282688,1725575431578,-41.62360771,0.0001447,3]
[337282689,1725575431588,-438.97982347,0.0001447,3]
[337282691,1725575437429,-5831.80412305,0.000133,5]
[337282707,1725575439517,-1214.79818361,0.000133,5]
[337282708,1725575439530,-1485.39769334,0.000133,5]
[337282709,1725575439539,-401.00656882,0.0001447,3]
[337282710,1725575439548,-186.2671,0.00014479,2]
[337282711,1725575439558,-341.5354,0.00014479,2]
[337282712,1725575439567,-29226.04469739,0.0001448,2]
[337282713,1725575439605,-2123.07399969,0.0001448,2]
[337282714,1725575439617,-560.873175,0.0001448,2]
[337282715,1725575439685,-8040.38885076,0.0001448,2]
[337282716,1725575439698,-6618.563923,0.0001448,2]
[337282717,1725575439767,-3145.404275,0.0001448,2]
[337282718,1725575439846,-526.97,0.0001448,2]
[337282719,1725575439857,-4695.87836017,0.0001448,2]
[337282721,1725575439868,-1560.70143172,0.0001448,2]
[337282723,1725575439879,-42466.77220368,0.0001448,2]
[337282769,1725575442437,-1000.0,0.00013601,2]
[337282770,1725575442447,-1565.26299959,0.0001448,2]
[337282771,1725575442522,-29603.99999999,0.0001448,2]
[337282772,1725575442535,-3208.873385,0.0001448,2]
[337282773,1725575442655,-354.726,0.0001448,2]
[337282781,1725575445607,-9361.16839901,0.0001448,2]
[337282782,1725575445616,-202.52837563,0.00014496,2]
[337282783,1725575445626,-150.0,0.00014498,2]
[337282784,1725575445635,-150.0,0.00014498,2]
[337282785,1725575445644,-150.0,0.00014498,2]
[337282786,1725575445653,-150.0,0.00014498,2]
[337282787,1725575445662,-150.0,0.00014498,2]
[337282788,1725575445672,-600.0,0.0001455,2]
[337282789,1725575445681,-609.86586107,0.0001455,2]
[337282790,1725575445694,-202.52837563,0.00014553,2]
[337282791,1725575445704,-10362.183529,0.00014571,3]
[337282792,1725575445713,-2608.60025946,0.00014572,3]
[337282793,1725575445819,-7753.58326954,0.00014572,3]
[337282794,1725575445828,-500.0,0.00014573,2]
[337282795,1725575445837,-500.0,0.00014578,2]
[337282796,1725575445846,-589.84,0.00014578,2]
[337282797,1725575445855,-500.0,0.00014578,2]
[337282798,1725575445865,-1258.33,0.00014578,2]
[337282799,1725575445874,-629.61,0.00014578,2]
[337282800,1725575445883,-500.0,0.00014578,2]
[337282801,1725575445893,-500.0,0.00014578,2]
[337282802,1725575445902,-1549.18,0.00014578,2]
[337282803,1725575445911,-556.0,0.00014578,2]
[337282804,1725575445920,-500.0,0.00014578,2]
[337282805,1725575445929,-500.0,0.00014578,2]
[337282806,1725575445938,-2680.45,0.00014578,2]
[337282807,1725575445947,-500.0,0.00014578,2]
[337282808,1725575445956,-535.48053046,0.00014578,2]
[337282809,1725575483160,212.19,0.00011708,2]
[337282810,1725575485359,750.0,0.00011,2]
[337282811,1725575486492,800.0,0.00013,2]
[337282812,1725575579681,6893.1,0.00013,2]
[337282813,1725575604904,500.0,0.00025288,120]
[337282816,1725575904562,157.87,0.00010959,2]
[337282817,1725575917986,150.0,0.00025,60]
[337282818,1725575919155,150.0,0.00025,60]
[337282819,1725575919485,150.0,0.00025,60]
[337282820,1725575920137,150.0,0.00025,60]
[337282821,1725575920727,150.0,0.00025,60]
[337282822,1725575924965,150.0,0.00025,61]
[337282823,1725575925770,150.0,0.00025,61]
[337282824,1725575926415,150.0,0.00025,61]
[337282825,1725575927059,150.0,0.00025,61]
[337282826,1725575927738,150.0,0.00025,61]
[337282827,1725575931804,150.0,0.00025,62]
[337282828,1725575932513,150.0,0.00025,62]
[337282829,1725575933196,150.0,0.00025,62]
[337282830,1725575933856,150.0,0.00025,62]
[337282831,1725575934469,150.0,0.00025,62]
[337282832,1725575940923,150.0,0.00027,120]
[337282833,1725575941697,150.0,0.00027,120]
[337282834,1725575942397,150.0,0.00027,120]
[337282835,1725575943103,150.0,0.00027,120]
[337282836,1725575943785,150.0,0.00027,120]
[337282839,1725576107213,504.0,0.00027,120]
[337282840,1725576125241,201.58,0.00011655,2]
[337282850,1725576631586,-173.55877246,0.00013467,2]
[337282851,1725576631596,-800.0,0.00013554,2]
[337282852,1725576631605,-250.0,0.00013555,2]
[337282853,1725576631615,-433.0,0.0001356,2]
[337282854,1725576631624,-176.32,0.00013561,2]
[337282855,1725576631633,-7580.10314802,0.0001358,2]
[337282856,1725576631642,-200.0,0.0001358,2]
[337282857,1725576631651,-189.48,0.00013583,2]
[337282858,1725576631660,-150.0,0.0001389,2]
[337282859,1725576631669,-201.58,0.00013918,2]
[337282860,1725576631678,-333.43189462,0.0001444,2]
[337282861,1725576631687,-448.143,0.00014478,2]
[337282862,1725576631696,-2911.8217,0.00014478,2]
[337282863,1725576631706,-440.13739118,0.00014479,2]
[337282864,1725576631715,-150.0,0.00014498,2]
[337282865,1725576631724,-150.0,0.00014498,2]
[337282866,1725576631733,-150.0,0.00014498,2]
[337282867,1725576631742,-150.0,0.00014498,2]
[337282868,1725576631753,-150.0,0.00014498,2]
[337282869,1725576631762,-160.51470132,0.00014498,2]
[337282870,1725576631770,-150.0,0.00014499,2]
[337282871,1725576631780,-340.01231625,0.000145,2]
[337282872,1725576631789,-1819.0,0.000145,2]
[337282873,1725576631800,-47623.72766372,0.000145,2]
[337282874,1725576631809,-440.13739116,0.00014526,2]
[337282875,1725576631818,-440.8,0.00014569,3]
[337282876,1725576631827,-440.13739116,0.00014573,2]
[337282877,1725576631836,-500.0,0.00014573,2]
[337282878,1725576631846,-491.8074183,0.00014573,2]
[337282879,1725576631855,-500.0,0.00014573,2]
[337282880,1725576631864,-41855.3806905,0.00014578,3]
[337282881,1725576631874,-500.0,0.00014578,2]
[337282882,1725576631883,-500.0,0.00014578,2]
[337282883,1725576631892,-500.0,0.00014578,2]
[337282884,1725576631901,-507.85188545,0.00014578,2]
[337282885,1725576631910,-500.0,0.00014578,2]
[337282886,1725576631919,-378.65,0.00014578,2]
[337282887,1725576631928,-934.07,0.00014578,2]
[337282888,1725576631937,-685.13,0.00014578,2]
[337282889,1725576631945,-1903.74,0.00014578,2]
[337282890,1725576631954,-500.0,0.00014578,2]
[337282891,1725576631963,-158.57026619,0.00014578,2]
[337282892,1725576631973,-502.36,0.00014578,2]
[337282893,1725576631982,-500.0,0.00014578,2]
[337282894,1725576631991,-418.35296751,0.00014578,2]
[337282895,1725576632000,-500.0,0.00014578,2]
[337282896,1725576632008,-500.0,0.00014578,2]
[337282897,1725576632017,-500.0,0.00014578,2]
[337282898,1725576632027,-500.0,0.00014578,2]
[337282899,1725576632035,-500.0,0.00014578,2]
[337282900,1725576632045,-500.0,0.00014578,2]